Cogmind - Beta 15 @@@ ROGUE MODE // 2025.05.18 @ 20:39:10 Player: Figgis Result: Self-destructed Performance ------------- Evolutions (2) 1000 Regions Visited (4) 800 Robots Destroyed (8) 40 Value Destroyed (181) 181 Prototype IDs (12) 240 Alien Tech Used (0) 0 Bonus (0) 0 TOTAL SCORE: 2261 Bonus ------- None Cogmind --------- Core Integrity 550/550 Matter 240/300 Energy 97/125 System Corruption 0% Temperature Cool (8) Movement Hovering (38) Location -8/Materials Parts ------- > --- POWER (1) -------- Light Ion Engine > --- PROPULSION (4) --- Aerolev Unit Aerolev Unit Aerolev Unit Aerolev Unit > --- UTILITY (4) ------ Small Storage Unit > --- WEAPON (2) ------- Plasma Flamer > --- INVENTORY (8) ---- Gun Armor Rocket Launcher Datajack Peak State ------------ > --- POWER ------------ Light Ion Engine > --- PROPULSION ------- Aerolev Unit Aerolev Unit Aerolev Unit Aerolev Unit > --- UTILITY ---------- Small Storage Unit > --- WEAPON ----------- Plasma Flamer > --- INVENTORY -------- Gun Armor Rocket Launcher Datajack [Rating: 24] Favorites ----------- Power Light Ion Engine Engine Light Ion Engine Propulsion Light Treads Treads Light Treads Hover Unit Aerolev Unit Utility Small Storage Unit Storage Small Storage Unit Weapon Small Laser Energy Gun Small Laser Ballistic Gun Assault Rifle Special Weapon Mining Laser Build | -11 -10 -10 -10 -8 ------- Run | Yrd Mat Min Sub Mat Slots Evolved 4 | . . . . 4 Power . | . . . . . Propulsion 2 | . . . . 2 Utility 2 | . . . . 2 Weapon . | . . . . . Parts Attached 16 | 6 4 1 1 4 Power 2 | 1 1 . . . Engine 2 | 1 1 . . . Core . | . . . . . Reactor . | . . . . . Propulsion 7 | 2 1 . . 4 Treads 3 | 2 1 . . . Leg . | . . . . . Wheel . | . . . . . Hover 4 | . . . . 4 Flight . | . . . . . Utility 2 | 1 1 . . . Device . | . . . . . Storage 2 | 1 1 . . . Processor . | . . . . . Hackware . | . . . . . Protection . | . . . . . Artifact . | . . . . . Weapon 5 | 2 1 1 1 . Energy Gun 1 | 1 . . . . Energy Cannon . | . . . . . Ballistic Gun 2 | 1 1 . . . Ballistic Cannon . | . . . . . Launcher . | . . . . . Special Weapon 2 | . . 1 1 . Impact Weapon . | . . . . . Slashing Weapon . | . . . . . Piercing Weapon . | . . . . . Special Melee Weapon . | . . . . . Unidentified Prototypes 1 | . . . . 1 Parts Lost 5 | . 4 . 1 . Power 1 | . 1 . . . Propulsion 2 | . 2 . . . Utility . | . . . . . Weapon 2 | . 1 . 1 . Highest Loss Streak 4 | . 4 . 1 . To Critical Strikes . | . . . . . Average Backups 4 | 2 4 5 4 4 Power 1 | . 1 . . . Propulsion . | . . . . . Utility . | . . 1 1 1 Weapon 1 | . 1 3 2 1 Tool/Special . | . . . . . Unused Backups 6 | . 2 1 . 3 Power 1 | . 1 . . . Propulsion 1 | . 1 . . . Utility 1 | . . . . 1 Weapon 2 | . . 1 . 1 Tool/Special 1 | . . . . 1 Average Slot Usage (%) 67 | . 82 28 34 42 Engine 13 | . 13 14 14 9 Treads 22 | . 27 14 14 4 Storage 9 | . 13 . . 4 Energy Gun 9 | . 13 . . . Ballistic Gun 9 | . 13 . . . Special Weapon 1 | . . . 6 4 Peak Build Rating 24 | 6 7 7 4 24 Average Rating 5 | 3 5 2 3 16 On Entrance 2 | . 6 2 3 3 Naked Turns . | . . . . . Heaviest Build 11 | 10 11 3 4 11 Greatest Support 40 | 40 40 3 3 32 Greatest Overweight (x) 1 | . 1 . 1 . Average Overweight (x) . | . . . . . Largest Inventory Capacity 20 | 8 20 5 5 8 Average Capacity 7 | 6 7 5 5 6 Most Carried 8 | 5 8 5 5 5 Average Carried 4 | 2 4 4 4 3 Final Capacity 8 | 8 5 5 5 8 Final Carried 5 | 2 5 5 5 3 Class Distribution -------------------- 100% | Mutant Dominant Class ---------------- Mutant | -10/Materials Mutant | -10/Mines Mutant | -10/Subcaves Mutant | -8/Materials Resources | -11 -10 -10 -10 -8 ----------- Run | Yrd Mat Min Sub Mat Matter Collected 420 | 195 174 26 25 . Remotely . | . . . . . Salvage Created 244 | . 244 . . . Parts 19 | . 19 . . . Haulers Intercepted 1 | . 1 . . . Recyclers Shooed . | . . . . . Parts Field Recycled . | . . . . . Retrieved Matter . | . . . . . Parts Self-Destructed 4 | . . . 4 . Prevented . | . . . . . Kills | -11 -10 -10 -10 -8 ------- Run | Yrd Mat Min Sub Mat Combat Hostiles Destroyed 7 | . 7 . . . Guns 7 | . 7 . . . Classes Destroyed 3 | . 3 . . . Hauler 1 | . 1 . . . Swarmer 3 | . 3 . . . Grunt 4 | . 4 . . . Best Kill Streak 3 | . 3 . . . Combat Bots Only 3 | . 3 . . . Max Kills in Single Turn 2 | . 2 . . . Gunslinging 1 | . 1 . . . Exploded . | . . . . . Melee . | . . . . . Uniques/NPCs Destroyed . | . . . . . Combat | -11 -10 -10 -10 -8 -------- Run | Yrd Mat Min Sub Mat Hostile Shots Fired 46 | . 41 1 4 . Missed 14 | . 13 1 . . Hits 32 | . 28 . 4 . Projectile 32 | . 28 . 4 . AOE 5 | . 5 . . . Damage Taken 683 | . 596 . 87 . Core 104 | . 104 . . . Absorbed by Shields . | . . . . . Core Remaining (%) 79 | 100 . . 58 . Volleys Fired 33 | . 26 . 7 . Largest 2 | . 2 . 1 . Hottest 100 | . 60 . 100 . Shots Fired 59 | . 52 . 7 . Gun 52 | . 52 . . . Cannon . | . . . . . Launcher . | . . . . . Special 7 | . . . 7 . Kinetic 26 | . 26 . . . Thermal 33 | . 26 . 7 . Explosive . | . . . . . Electromagnetic . | . . . . . Robot Hit Streak 8 | . 8 . . . Robot Miss Streak 4 | . 4 . . . Penetration Max . | . . . . . Secondary Targets 1 | . 1 . . . Max Gunslinging Chain 1 | . 1 . . . Shots Hit Robots 31 | . 31 . . . Core Hits 15 | . 15 . . . Critical Kills . | . . . . . Critical Parts Destroyed . | . . . . . Critical Strikes . | . . . . . Melee Attacks . | . . . . . Impact . | . . . . . Slashing . | . . . . . Piercing . | . . . . . Sneak Attacks . | . . . . . Combat Hostiles . | . . . . . Follow-up Attacks . | . . . . . Damage Inflicted 356 | . 356 . . . Guns 356 | . 356 . . . Cannons . | . . . . . Explosions . | . . . . . Melee . | . . . . . Ramming . | . . . . . Kinetic 156 | . 156 . . . Thermal 200 | . 200 . . . Explosive . | . . . . . Electromagnetic . | . . . . . Impact . | . . . . . Slashing . | . . . . . Piercing . | . . . . . Highest Corruption 2 | . 2 2 2 . Average Corruption 2 | . 2 2 2 . Corruption Purged . | . . . . . Corruption Blocked . | . . . . . Effects 13 | . 6 1 6 . Message Errors 4 | . 2 1 1 . Matter Fused 3 | . 2 . 1 . Heat Flow Errors 4 | . 1 . 3 . Data Loss (minor) 1 | . 1 . . . Data Loss (major) 1 | . . . 1 . Overload Shots . | . . . . . Overflow Damage . | . . . . . Projectiles . | . . . . . Explosions . | . . . . . Melee . | . . . . . Knockbacks . | . . . . . Impact . | . . . . . Kinetic . | . . . . . Secondary . | . . . . . Self-Inflicted Damage . | . . . . . Shots . | . . . . . Rammed . | . . . . . Targets Rammed . | . . . . . Kicked . | . . . . . Crushed . | . . . . . Highest Temperature 257 | . 257 . 220 . Average Temperature 60 | . 49 . 109 . Received Heat Transfer 165 | . 165 . . . Siege Activations . | . . . . . Martial Activations . | . . . . . Shielding Activations . | . . . . . Robots Disrupted . | . . . . . Combat Hostiles . | . . . . . Robots Corrupted . | . . . . . Combat Hostiles . | . . . . . Parts Fried . | . . . . . Impact Corruptions . | . . . . . Robots Melted . | . . . . . Combat Hostiles . | . . . . . Parts Melted . | . . . . . Heat Transferred 450 | . 450 . . . Parts Sabotaged . | . . . . . Parts Stolen . | . . . . . Parts Stripped . | . . . . . Power Chain Reactions . | . . . . . Alert | -11 -10 -10 -10 -8 ------- Run | Yrd Mat Min Sub Mat Maximum Alert Level . | . . . . . Low Security (%) 100 | 100 100 100 . 100 Level 1 . | . . . . . Level 2 . | . . . . . Level 3 . | . . . . . Level 4 . | . . . . . Level 5 . | . . . . . High Security . | . . . . . Max Security . | . . . . . Peak Influence 97 | . 97 30 . 21 Initial . | . . . . . Average 18 | . 22 6 . 4 Influence Increases 259 | . 193 45 . 21 Destroy 0b10 Robot/C 140 | . 140 . . . Destroy 0b10 Robot/NC 5 | . 5 . . . Destroy Leader 32 | . 32 . . . Successful Hack 21 | . 15 . . 6 Destroy Structure 1 | . 1 . . . Partial Spotted 30 | . . 15 . 15 Lose Combat Pursuer 30 | . . 30 . . Influence Decreases 248 | . 193 35 10 10 Entered New Map 6 | . . . 6 . Time Decay 242 | . 193 35 4 10 Squads Dispatched 4 | . 3 . . 1 Investigation 2 | . 2 . . . Extermination . | . . . . . Reinforcement 2 | . 1 . . 1 Assault . | . . . . . Garrison . | . . . . . Intercept . | . . . . . Searches Triggered . | . . . . . Construction Impeded . | . . . . . Haulers Reinforced . | . . . . . Active Scanning Responses . | . . . . . Cargo Convoy Interrupts . | . . . . . Stealth | -11 -10 -10 -10 -8 --------- Run | Yrd Mat Min Sub Mat Distress Signals 1 | . 1 . . . Communications Jammed . | . . . . . Distress Signals . | . . . . . Times Spotted 32 | . 24 2 5 1 Peak Tracking Total 5 | . 5 2 5 1 Tactical Retreats 4 | . 2 1 1 . Traps | -11 -10 -10 -10 -8 ------- Run | Yrd Mat Min Sub Mat Traps Triggered 1 | . 1 . . . Indirectly . | . . . . . Trap Hack Attempts . | . . . . . Triggered . | . . . . . Disarmed . | . . . . . Reprogrammed . | . . . . . Reused . | . . . . . Traps Extracted . | . . . . . Installed . | . . . . . Triggered . | . . . . . Machines | -11 -10 -10 -10 -8 ---------- Run | Yrd Mat Min Sub Mat Machines Disabled 1 | . . . 1 . Max in Single Turn 1 | . . . 1 . Machines Repaired . | . . . . . Machines Dismantled . | . . . . . Machines Sabotaged . | . . . . . Overloaded Fab Kills . | . . . . . Hacking | -11 -10 -10 -10 -8 --------- Run | Yrd Mat Min Sub Mat Machines Accessed 8 | . 6 . 1 1 Terminals 6 | . 5 . . 1 Fabricators . | . . . . . Repair Stations . | . . . . . Recycling Units 1 | . 1 . . . Scanalyzers . | . . . . . Garrison Access . | . . . . . Total Hacks 32 | . 17 . 9 6 Successful 19 | . 8 . 9 2 Failed 13 | . 9 . . 4 Catastrophic 5 | . 2 . . 3 Database Lockouts . | . . . . . Manual 19 | . 13 . . 6 Terminals 22 | . 16 . . 6 Fabricators . | . . . . . Repair Stations . | . . . . . Recycling Units 1 | . 1 . . . Scanalyzers . | . . . . . Garrison Access . | . . . . . Terminal Hacks 13 | . 3 . 9 1 Record 8 | . . . 8 . Branch Access Points 1 | . 1 . . . Terminal Index 2 | . 1 . . 1 Locate Traps 1 | . 1 . . . Proto ID Catalog 1 | . . . 1 . Fabricator Hacks . | . . . . . Repair Station Hacks . | . . . . . Recycling Unit Hacks 1 | . 1 . . . Report Inventory 1 | . 1 . . . Scanalyzer . | . . . . . Garrison Access Hacks . | . . . . . Unauthorized Hacks 5 | . 4 . . 1 Terminals 5 | . 4 . . 1 Botnet 5 | . 4 . . 1 Fabricators . | . . . . . Repair Stations . | . . . . . Recycling Units . | . . . . . Scanalyzers . | . . . . . Garrison Access . | . . . . . Data Cores Recovered . | . . . . . Used . | . . . . . Hacking Detections 6 | . 5 . . 1 Full Trace Events 1 | . 1 . . . Feedback Events . | . . . . . Feedback Blocked . | . . . . . Robot Schematics Acquired . | . . . . . Robots Built . | . . . . . Authchips . | . . . . . Time . | . . . . . Total Robot Build Rating . | . . . . . Part Schematics Acquired . | . . . . . Parts Built . | . . . . . Authchips . | . . . . . Time . | . . . . . Total Part Build Rating . | . . . . . Parts Repaired . | . . . . . Time . | . . . . . Parts Recycled . | . . . . . Recycled Matter . | . . . . . Retrieved Matter . | . . . . . Retrieved Components . | . . . . . Parts Scanalyzed . | . . . . . Part Schematics Acquired . | . . . . . Parts Damaged . | . . . . . Bothacking | -11 -10 -10 -10 -8 ------------ Run | Yrd Mat Min Sub Mat Used RIF Installer . | . . . . . Robots Hacked . | . . . . . Non-combat . | . . . . . Combat . | . . . . . Robot Hacks Applied . | . . . . . Relay Couplers Released . | . . . . . Fabnet Peak Effective % . | . . . . . Robots Rewired . | . . . . . Allies Hacked . | . . . . . Hacks Repelled . | . . . . . Allies | -11 -10 -10 -10 -8 -------- Run | Yrd Mat Min Sub Mat Total Allies . | . . . . . Largest Group . | . . . . . Highest-Rated Group . | . . . . . Highest-Rated Ally . | . . . . . Total Orders . | . . . . . Ally Attacks . | . . . . . Total Damage . | . . . . . Kills . | . . . . . Allies Corrupted . | . . . . . Allies Melted . | . . . . . Intel | -11 -10 -10 -10 -8 ------- Run | Yrd Mat Min Sub Mat Active Infowar (turns) . | . . . . . Robot Analysis Total . | . . . . . Derelict Logs Recovered 3 | . . 3 . . Drone Launches . | . . . . . Drone Recoveries . | . . . . . Exploration | -11 -10 -10 -10 -8 ------------- Run | Yrd Mat Min Sub Mat Turns Passed 1359 | 44 932 144 197 42 Spaces Moved 1227 | 32 567 279 269 80 Core 662 | 17 73 279 269 24 Treads 509 | 15 494 . . . Legs . | . . . . . Wheels . | . . . . . Hover 56 | . . . . 56 Flight . | . . . . . Fastest Speed 38 | 50 50 50 50 38 Average Speed 97 | 101 146 50 61 41 Slowest Speed 160 | 160 160 50 100 50 Overloaded Moves . | . . . . . Propulsion Burnouts . | . . . . . Robots Hopped . | . . . . . Potential Cave-ins . | . . . . . Cave-ins Triggered . | . . . . . Exploration Rate (%) 32 | 4 71 62 15 9 Regions Visited 4 Branch Regions 2 Pre-discovered Areas 1 | . . 1 . . Known Exits Taken 1 | . 1 . . . Unknown Exits Taken 3 | 1 . 1 1 . Scrap Searched 1 | . . 1 . . Spaces Dug . | . . . . . Terrain Destroyed . | . . . . . Melee . | . . . . . Projectile . | . . . . . AOE . | . . . . . Terrain Rammed . | . . . . . Walls Destroyed . | . . . . . Machines Disabled . | . . . . . Actions | -11 -10 -10 -10 -8 --------- Run | Yrd Mat Min Sub Mat Total 1312 | 42 621 283 279 87 Wait 10 | . 10 . . . Move 1223 | 31 566 278 268 80 Hop . | . . . . . Pick Up 14 | 5 7 1 1 . Fast Attach 8 | 3 . 1 . 4 Attach 10 | 3 3 . 2 2 Detach 5 | . 3 1 1 . Swap 2 | . 2 . . . Drop 7 | . 4 2 . 1 Fire 33 | . 26 . 7 . Melee . | . . . . . Ram . | . . . . . Kick . | . . . . . Crush . | . . . . . Escape Stasis . | . . . . . Rewire . | . . . . . Trap . | . . . . . Miscellaneous . | . . . . . Route ------- -11/Scrapyard -10/Materials (discovered 4 exits: *Mat x3 / *Min) -10/Mines (discovered 2 exits: *Mat / *Sub) -10/Subcaves -8/Materials History --------- Turn | Location | Event 8 | -11/Scrapyard | Discovered new exit (range 15) 45 | -11/Scrapyard | Entered Materials 92 | -10/Materials | Discovered new exit (range 16) 190 | -10/Materials | Discovered new exit (range 14) 315 | -10/Materials | Build established: Mutant 346 | -10/Materials | Discovered new exit (range 13) 409 | -10/Materials | Identified exit to Mines 745 | -10/Materials | Derelicts attacked the area 788 | -10/Materials | Discovered new exit (range 5) 967 | -10/Materials | Lost 4 parts (1p2n1w) 977 | -10/Materials | Entered Mines 978 | -10/Mines | Learned location of Storage (-7) 986 | -10/Mines | Identified exit to Materials 986 | -10/Mines | Learned Materials garrison access intel 990 | -10/Mines | A weapon hastily lodged in a ceiling crevice suddenly fell to the ground 1032 | -10/Mines | Learned Materials trap positions 1100 | -10/Mines | Discovered new exit (range 10) 1121 | -10/Mines | Entered Subcaves 1122 | -10/Subcaves | Approached by a straggling Scientist 1221 | -10/Subcaves | Visited 4L-MR0's lab 1233 | -10/Subcaves | Found Gun Armor 1288 | -10/Subcaves | Discovered new exit (range 6) 1318 | -10/Subcaves | Entered Materials 1318 | -8/Materials | Evolved 4 slots: Propulsion x2, Utility x2 1319 | -8/Materials | Loaded intel: 8 trap records 1320 | -8/Materials | Loaded intel: 1 garrison access location 1360 | -8/Materials | Self-destructed Last Messages --------------- 01324_ O-16 Technician: "IFF HANDSHAKE FAILED. SECURING TERMINAL." 01327_ O-16 Technician uses terminal to summon reinforcements. 01327_ ALERT: Hostiles spotted, dispatching reinforcements to Terminal M006. 01327_ O-16 Technician locks terminal. 01329_ Acquired Prototype Hover Unit. 01329_ Identified Aerolev Unit. 01331_ Acquired Aerolev Unit. 01332_ Dropped Lgt. Treads. 01333_ Acquired Aerolev Unit. 01353_ Connecting with Terminal... 01353_ Current location identified: Materials >>Trojan(Botnet) Trojan loaded successfully. Testing... Terminal linked with 0 systems. Awaiting botnet instructions. >>Index(Terminals) Found 12 terminals. Downloaded coordinate data. Map ----- +----------------------------------------------------+ | ?????????????????????????????????????????????????? | | ?????????????????????????????????????????????????? | | ?????????????????????????????????????????????????? | | ?????????????????????????????????????????????????? | | ?????????????????????????????""??????????????????? | | ??????????????????????????????G"?????????????????? | | ?????????????????????^^??????""??????????????????? | | ?????????????????????^^??????????????????????????? | | ?????????? ??????????????????????????????????????? | | ?????????? ????????????? ##?????????????????????? | | ?????????? ????????????? ?????????????????????? | | ?????????? ????????????? ?????????????????????? | | ?????????? ????????????? ?????????????????????? | | ?????????? ????????????? #?????????????????????? | | ?????????? ????????????? #?????????????????????? | | ?????????# #???????????? #?????????????????????? | | ?????????# #???????????? #?????????????????????? | | ?????????# #???????????? #?????????????????????? | | ?????????# #???????????? #?????????????????????? | | ?????????# #????????????# #?????????????????????? | | ?????????# #????????????# r#?????????????????????? | | ?????????# #????????????# #?????????????????????? | | ##########^############## #?????????????????????? | | #?????????????????????? | | ######################+## #?????????????????????? | | ############??# #@ #?????????????????????? | | #??# T !# #?????????????????????? | | ???# # ### #???????????????? | | """""???????# # " #???????????????? | | """"""???????###########+#+## #???????????????? | | """ "???????????????? ????##???????????????? | | ######????????????????# #???????????????????? | | ??????????????????????# #???????????????????? | | ??????????????????????# #?????????^?????????? | | ??????????????????????# #???????????????????? | | ??????????????????????# #?????????????H?????? | | ??????????????????????########???????????????????? | | ?????????????????????????????????????????????????? | | ?????????????????????????????????????????????????? | | ?????????????????????????????????????????????????? | | ?????????????????????????????????????????????????? | | ?????????????????????????????????????????????????? | | ?????????????????????????????????????????????????? | | ?????????????????????????????????????????????????? | | | | | | | | | | | | | +----------------------------------------------------+ Best States ------------- Heat Dissipation 31 Energy Generation 10 Energy Capacity 125 Matter Stores 300 Matter Capacity 300 Sight Range 16 Terrain Scan Density 10 Evasion (%) 57 Recoil Reduction 2 Item Schematics ----------------- None Robot Schematics ------------------ None Fabricated ------------ Nothing Repaired ---------- Nothing Alien Tech Used ----------------- None Achievements -------------- None Challenges ------------ None Game ------ Seed GuidanceAuthchipPurifier Manual? 0 Play Time 00:15:25 Cumulative 127.7 hours Start 2025.05.18 @ 20:24:07 End 2025.05.18 @ 20:39:10 Sessions 1 Manual Loads 0 Difficulty Rogue Special Mode None Game No. 193 Rogue 190 Adventurer 3 Explorer 0 Win Type - Total 0 Types 0/0/0/0/0/0/0/0/0/0 Lore% 29 Gallery% 52 Achievement% 42 Wizard Run 0 Options --------- Layout 0 ASCII 0 Keyboard 0 Movement Mouse Keybinds 0 Fullscreen 2 Font 18/SmallcapsGlow Map View 76x50 Zoom Use 0% Tactical HUD 1 Map Filters NONE Filters NONE Steam 1 RUN: 279f41a6-9b5f-478a-afaa-cac0b057e762